Cogmind - Beta 15 @@@ ROGUE MODE // 2025.07.01 @ 20:39:23 Player: SpecialSpeedy Result: Destroyed by L-31 Rogue with Katana Performance ------------- Evolutions (0) 0 Regions Visited (4) 800 Robots Destroyed (16) 80 Value Destroyed (339) 339 Prototype IDs (0) 0 Alien Tech Used (0) 0 Bonus (0) 0 TOTAL SCORE: 1219 Bonus ------- None Cogmind --------- Core Integrity 0/250 Matter 97/300 Energy 99/100 System Corruption 0% Temperature Cool (0) Movement Core (100) Ox1 Location -9/Mines Parts ------- > --- POWER (1) -------- (None) > --- PROPULSION (2) --- (None) > --- UTILITY (2) ------ Power Shielding Hardlight Generator > --- WEAPON (2) ------- (None) > --- INVENTORY (5) ---- Deuterium Engine Aluminum Leg Small Laser Particle Gun Assault Rifle Peak State ------------ > --- POWER ------------ Light Nuclear Core > --- PROPULSION ------- Aluminum Leg Titanium Leg > --- UTILITY ---------- Power Shielding Hardlight Generator > --- WEAPON ----------- Pulse Rifle Missile Launcher > --- INVENTORY -------- Aluminum Leg Seismic Detector Small Laser Particle Gun Assault Rifle [Rating: 17] Favorites ----------- Power Light Nuclear Core Engine Light Ion Engine Power Core Light Nuclear Core Propulsion Aluminum Leg Leg Aluminum Leg Flight Unit Flight Unit Utility Power Shielding Device Hardlight Generator Protection Power Shielding Weapon Missile Launcher Energy Gun Pulse Rifle Ballistic Gun Light Assault Rifle Launcher Missile Launcher Build | -11 -10 -10 -10 -9 ------- Run | Yrd Mat Min Exi Min Slots Evolved . | . . . . . Power . | . . . . . Propulsion . | . . . . . Utility . | . . . . . Weapon . | . . . . . Parts Attached 21 | 5 10 6 . . Power 3 | 1 1 1 . . Engine 2 | 1 . 1 . . Core 1 | . 1 . . . Reactor . | . . . . . Propulsion 7 | 2 4 1 . . Treads . | . . . . . Leg 5 | 2 2 1 . . Wheel . | . . . . . Hover . | . . . . . Flight 2 | . 2 . . . Utility 4 | . 2 2 . . Device 3 | . 1 2 . . Storage . | . . . . . Processor . | . . . . . Hackware . | . . . . . Protection 1 | . 1 . . . Artifact . | . . . . . Weapon 7 | 2 3 2 . . Energy Gun 3 | . 2 1 . . Energy Cannon . | . . . . . Ballistic Gun 3 | 2 1 . . . Ballistic Cannon . | . . . . . Launcher 1 | . . 1 . . Special Weapon . | . . . . . Impact Weapon . | . . . . . Slashing Weapon . | . . . . . Piercing Weapon . | . . . . . Special Melee Weapon . | . . . . . Unidentified Prototypes . | . . . . . Parts Lost 8 | . 4 . . 4 Power 1 | . . . . 1 Propulsion 4 | . 2 . . 2 Utility . | . . . . . Weapon 3 | . 2 . . 1 Highest Loss Streak 4 | . 4 . . 2 To Critical Strikes . | . . . . . Average Backups 4 | 1 2 4 5 5 Power 1 | . 1 1 1 1 Propulsion . | . . . 1 1 Utility . | . . . . . Weapon 2 | . . 1 3 3 Tool/Special . | . . . . . Unused Backups 3 | . . 3 . . Power 1 | . . 1 . . Propulsion . | . . . . . Utility 2 | . . 2 . . Weapon . | . . . . . Tool/Special . | . . . . . Average Slot Usage (%) 94 | . 89 100 100 85 Engine 2 | . 8 . . . Core 10 | . 5 13 14 7 Leg 26 | . 22 28 28 28 Device 13 | . 13 14 14 14 Protection 12 | . 9 14 14 14 Energy Gun 13 | . 9 18 14 10 Ballistic Gun 5 | . 17 6 . . Launcher 7 | . . 2 14 10 Peak Build Rating 17 | 5 10 17 17 17 Average Rating 12 | 3 7 12 17 13 On Entrance 9 | . 5 10 17 17 Naked Turns . | . . . . . Heaviest Build 20 | 5 11 20 20 20 Greatest Support 27 | 20 20 27 27 27 Greatest Overweight (x) 2 | 1 2 . . 1 Average Overweight (x) . | . . . . . Largest Inventory Capacity 5 | 5 5 5 5 5 Average Capacity 5 | 5 5 5 5 5 Most Carried 5 | 4 4 5 5 5 Average Carried 4 | 1 2 4 5 5 Final Capacity 5 | 5 5 5 5 5 Final Carried 5 | 2 3 5 5 5 Class Distribution -------------------- 86% | Mutant 13% | Scavenger-Mutant Dominant Class ---------------- Mutant | -10/Materials Mutant | -10/Mines Mutant | -10/Exiles Mutant | -9/Mines Resources | -11 -10 -10 -10 -9 ----------- Run | Yrd Mat Min Exi Min Matter Collected 423 | 228 159 31 . 5 Remotely . | . . . . . Salvage Created 237 | . 155 . . 82 Parts 28 | . 13 . . 15 Haulers Intercepted . | . . . . . Recyclers Shooed . | . . . . . Parts Field Recycled . | . . . . . Retrieved Matter . | . . . . . Parts Self-Destructed . | . . . . . Prevented . | . . . . . Kills | -11 -10 -10 -10 -9 ------- Run | Yrd Mat Min Exi Min Combat Hostiles Destroyed 16 | . 5 . . 11 Guns 6 | . 5 . . 1 AOE 10 | . . . . 10 Classes Destroyed 3 | . 2 . . 1 Swarmer 10 | . 2 . . 8 Grunt 4 | . 3 . . 1 Sentry 2 | . . . . 2 Best Kill Streak 5 | . 3 . . 5 Combat Bots Only 5 | . 3 . . 5 Max Kills in Single Turn 3 | . 1 . . 3 Gunslinging . | . . . . . Exploded 3 | . . . . 3 Melee . | . . . . . Uniques/NPCs Destroyed . | . . . . . Combat | -11 -10 -10 -10 -9 -------- Run | Yrd Mat Min Exi Min Hostile Shots Fired 99 | . 61 . . 38 Missed 29 | . 19 . . 10 Hits 70 | . 42 . . 28 Melee 5 | . . . . 5 Projectile 65 | . 42 . . 23 Critical Strikes 2 | . 1 . . 1 Damage Taken 1020 | . 442 39 . 539 Core 267 | . 111 . . 156 Absorbed by Shields . | . . . . . Redirected to Shielding 24 | . 11 4 . 9 Core Remaining (%) 100 | 100 . . . . Volleys Fired 39 | . 26 . . 13 Largest 2 | . 2 . . 2 Hottest 99 | . 60 . . 99 Shots Fired 72 | . 46 . . 26 Gun 59 | . 46 . . 13 Cannon . | . . . . . Launcher 13 | . . . . 13 Special . | . . . . . Kinetic 45 | . 45 . . . Thermal 14 | . 1 . . 13 Explosive 13 | . . . . 13 Electromagnetic . | . . . . . Robot Hit Streak 20 | . 20 . . 11 Robot Miss Streak 6 | . 6 . . 3 Penetration Max . | . . . . . Secondary Targets 2 | . 2 . . . Max Gunslinging Chain 1 | . 1 . . . Shots Hit Robots 48 | . 30 . . 18 Core Hits 26 | . 12 . . 14 Critical Kills . | . . . . . Critical Parts Destroyed . | . . . . . Critical Strikes 1 | . . . . 1 Burn 1 | . . . . 1 Melee Attacks . | . . . . . Impact . | . . . . . Slashing . | . . . . . Piercing . | . . . . . Sneak Attacks . | . . . . . Combat Hostiles . | . . . . . Follow-up Attacks . | . . . . . Damage Inflicted 1271 | . 268 . . 1003 Guns 474 | . 268 . . 206 Cannons . | . . . . . Explosions 797 | . . . . 797 Melee . | . . . . . Ramming . | . . . . . Kinetic 268 | . 268 . . . Thermal 206 | . . . . 206 Explosive 797 | . . . . 797 Electromagnetic . | . . . . . Impact . | . . . . . Slashing . | . . . . . Piercing . | . . . . . Highest Corruption . | . . . . . Average Corruption . | . . . . . Corruption Purged . | . . . . . Corruption Blocked . | . . . . . Overload Shots . | . . . . . Overflow Damage 8 | . . . . 8 Projectiles . | . . . . . Explosions 8 | . . . . 8 Melee . | . . . . . Knockbacks . | . . . . . Impact . | . . . . . Kinetic . | . . . . . Secondary . | . . . . . Self-Inflicted Damage 130 | . . . . 130 Shots 5 | . . . . 5 Rammed . | . . . . . Targets Rammed . | . . . . . Kicked . | . . . . . Crushed . | . . . . . Highest Temperature 195 | . 46 . . 195 Average Temperature 59 | . 23 . . 81 Received Heat Transfer 231 | . 186 . . 45 Siege Activations . | . . . . . Martial Activations . | . . . . . Shielding Activations . | . . . . . Robots Disrupted . | . . . . . Combat Hostiles . | . . . . . Robots Corrupted . | . . . . . Combat Hostiles . | . . . . . Parts Fried . | . . . . . Impact Corruptions . | . . . . . Robots Melted . | . . . . . Combat Hostiles . | . . . . . Parts Melted . | . . . . . Heat Transferred 518 | . . . . 518 Parts Sabotaged . | . . . . . Parts Stolen . | . . . . . Parts Stripped . | . . . . . Power Chain Reactions . | . . . . . Alert | -11 -10 -10 -10 -9 ------- Run | Yrd Mat Min Exi Min Maximum Alert Level 1 | . . . . 1 Low Security (%) 86 | 100 100 100 . 57 Level 1 13 | . . . . 42 Level 2 . | . . . . . Level 3 . | . . . . . Level 4 . | . . . . . Level 5 . | . . . . . High Security . | . . . . . Max Security . | . . . . . Peak Influence 232 | . 50 . . 232 Initial . | . . . . . Average 52 | . 14 . . 154 Influence Increases 474 | . 120 . . 354 Destroy 0b10 Robot/C 320 | . 100 . . 220 Destroy Leader 40 | . 20 . . 20 Destroy Structure 69 | . . . . 69 Lose Combat Pursuer 45 | . . . . 45 Influence Decreases 310 | . 120 . . 190 Time Decay 230 | . 80 . . 150 Lost Part 80 | . 40 . . 40 Squads Dispatched 1 | . . 1 . . Investigation 1 | . . 1 . . Extermination . | . . . . . Reinforcement . | . . . . . Assault . | . . . . . Garrison . | . . . . . Intercept . | . . . . . Searches Triggered . | . . . . . Construction Impeded . | . . . . . Haulers Reinforced . | . . . . . Active Scanning Responses . | . . . . . Cargo Convoy Interrupts . | . . . . . Stealth | -11 -10 -10 -10 -9 --------- Run | Yrd Mat Min Exi Min Distress Signals 1 | . 1 . . . Communications Jammed . | . . . . . Distress Signals . | . . . . . Times Spotted 24 | . 9 . . 15 Peak Tracking Total 5 | . 5 . . 5 Tactical Retreats 3 | . . . . 3 Traps | -11 -10 -10 -10 -9 ------- Run | Yrd Mat Min Exi Min Traps Triggered 1 | . . 1 . . Indirectly . | . . . . . Trap Hack Attempts . | . . . . . Triggered . | . . . . . Disarmed . | . . . . . Reprogrammed . | . . . . . Reused . | . . . . . Traps Extracted . | . . . . . Installed . | . . . . . Triggered . | . . . . . Machines | -11 -10 -10 -10 -9 ---------- Run | Yrd Mat Min Exi Min Machines Disabled 2 | . . . . 2 Max in Single Turn 2 | . . . . 2 Machines Repaired . | . . . . . Machines Dismantled . | . . . . . Machines Sabotaged . | . . . . . Overloaded Fab Kills . | . . . . . Hacking | -11 -10 -10 -10 -9 --------- Run | Yrd Mat Min Exi Min Machines Accessed 2 | . . 2 . . Terminals . | . . . . . Fabricators . | . . . . . Repair Stations . | . . . . . Recycling Units . | . . . . . Scanalyzers . | . . . . . Garrison Access . | . . . . . Total Hacks 2 | . . 2 . . Successful 2 | . . 2 . . Failed . | . . . . . Catastrophic . | . . . . . Database Lockouts . | . . . . . Manual . | . . . . . Terminals . | . . . . . Fabricators . | . . . . . Repair Stations . | . . . . . Recycling Units . | . . . . . Scanalyzers . | . . . . . Garrison Access . | . . . . . Terminal Hacks 2 | . . 2 . . Open Door 2 | . . 2 . . Fabricator Hacks . | . . . . . Repair Station Hacks . | . . . . . Recycling Unit Hacks . | . . . . . Scanalyzer . | . . . . . Garrison Access Hacks . | . . . . . Unauthorized Hacks . | . . . . . Terminals . | . . . . . Fabricators . | . . . . . Repair Stations . | . . . . . Recycling Units . | . . . . . Scanalyzers . | . . . . . Garrison Access . | . . . . . Data Cores Recovered . | . . . . . Used . | . . . . . Hacking Detections . | . . . . . Full Trace Events . | . . . . . Feedback Events . | . . . . . Feedback Blocked . | . . . . . Robot Schematics Acquired . | . . . . . Robots Built . | . . . . . Authchips . | . . . . . Time . | . . . . . Total Robot Build Rating . | . . . . . Part Schematics Acquired . | . . . . . Parts Built . | . . . . . Authchips . | . . . . . Time . | . . . . . Total Part Build Rating . | . . . . . Parts Repaired . | . . . . . Time . | . . . . . Parts Recycled . | . . . . . Recycled Matter . | . . . . . Retrieved Matter . | . . . . . Retrieved Components . | . . . . . Parts Scanalyzed . | . . . . . Part Schematics Acquired . | . . . . . Parts Damaged . | . . . . . Bothacking | -11 -10 -10 -10 -9 ------------ Run | Yrd Mat Min Exi Min Used RIF Installer . | . . . . . Robots Hacked . | . . . . . Non-combat . | . . . . . Combat . | . . . . . Robot Hacks Applied . | . . . . . Relay Couplers Released . | . . . . . Fabnet Peak Effective % . | . . . . . Robots Rewired . | . . . . . Allies Hacked . | . . . . . Hacks Repelled . | . . . . . Allies | -11 -10 -10 -10 -9 -------- Run | Yrd Mat Min Exi Min Total Allies . | . . . . . Largest Group . | . . . . . Highest-Rated Group . | . . . . . Highest-Rated Ally . | . . . . . Total Orders . | . . . . . Ally Attacks . | . . . . . Total Damage . | . . . . . Kills . | . . . . . Allies Corrupted . | . . . . . Allies Melted . | . . . . . Intel | -11 -10 -10 -10 -9 ------- Run | Yrd Mat Min Exi Min Active Infowar (turns) 577 | . 332 245 . . Seismic 577 | . 332 245 . . Robot Analysis Total . | . . . . . Derelict Logs Recovered 3 | . . 2 . 1 Drone Launches . | . . . . . Drone Recoveries . | . . . . . Exploration | -11 -10 -10 -10 -9 ------------- Run | Yrd Mat Min Exi Min Turns Passed 1514 | 48 347 294 520 305 Spaces Moved 1107 | 36 225 217 417 212 Core 29 | 17 7 . . 5 Treads . | . . . . . Legs 1065 | 19 205 217 417 207 Wheels . | . . . . . Hover . | . . . . . Flight 13 | . 13 . . . Fastest Speed 37 | 50 37 120 125 100 Average Speed 121 | 99 115 123 125 124 Slowest Speed 150 | 120 150 125 125 125 Overloaded Moves . | . . . . . Propulsion Burnouts . | . . . . . Robots Hopped . | . . . . . Potential Cave-ins . | . . . . . Cave-ins Triggered . | . . . . . Exploration Rate (%) 47 | 5 50 51 75 56 Regions Visited 4 Branch Regions 3 Pre-discovered Areas . | . . . . . Known Exits Taken 1 | . . . 1 . Unknown Exits Taken 3 | 1 1 1 . . Scrap Searched 1 | . . 1 . . Spaces Dug . | . . . . . Terrain Destroyed 101 | . . . . 101 Melee . | . . . . . Projectile . | . . . . . AOE 101 | . . . . 101 Terrain Rammed . | . . . . . Walls Destroyed . | . . . . . Machines Disabled . | . . . . . Actions | -11 -10 -10 -10 -9 --------- Run | Yrd Mat Min Exi Min Total 1205 | 48 273 243 416 225 Wait 3 | 1 2 . . . Move 1103 | 35 224 216 416 212 Hop . | . . . . . Pick Up 26 | 7 9 10 . . Fast Attach . | . . . . . Attach 12 | 5 6 1 . . Detach . | . . . . . Swap 12 | . 4 8 . . Drop 10 | . 2 8 . . Fire 39 | . 26 . . 13 Melee . | . . . . . Ram . | . . . . . Kick . | . . . . . Crush . | . . . . . Escape Stasis . | . . . . . Rewire . | . . . . . Trap . | . . . . . Miscellaneous . | . . . . . Route ------- -11/Scrapyard -10/Materials -10/Mines -10/Exiles (discovered 2 exits: *Min x2) -9/Mines (discovered 1 exit: [*Mat]) History --------- Turn | Location | Event 17 | -11/Scrapyard | Discovered new exit (range 16) 49 | -11/Scrapyard | Entered Materials 287 | -10/Materials | Lost 4 parts (2n2w) 319 | -10/Materials | Discovered new exit (range 12) 396 | -10/Materials | Entered Mines 462 | -10/Mines | Met a Derelict who couldn't figure out how to use a Trap Extractor 577 | -10/Mines | Deemed a non-threat by the Exiles lab entrance 577 | -10/Mines | Discovered new exit (range 5) 624 | -10/Mines | Met a Derelict shopkeep closing up shop 690 | -10/Mines | Entered Exiles 691 | -10/Exiles | Identified exit to Mines 752 | -10/Exiles | Met 8R-AWN 762 | -10/Exiles | Build established: Mutant 774 | -10/Exiles | Met EX-HEX 820 | -10/Exiles | Met EX-DEC 994 | -10/Exiles | Visited The Gauntlet 1210 | -10/Exiles | Entered Mines 1217 | -9/Mines | Received a Rocket Launcher from a helpful Derelict 1281 | -9/Mines | Learned Materials stockpile data 1330 | -9/Mines | Core integrity fell below 50% 1437 | -9/Mines | Core integrity fell below 20% 1502 | -9/Mines | Discovered new exit (range 12) 1515 | -9/Mines | Destroyed by L-31 Rogue with Katana Last Messages --------------- U-05 Engineer lays Concrete. T-07 Excavator is excavating. U-05 Engineer lays Concrete. K-01 Serf collects debris. U-05 Engineer lays Concrete. U-05 Engineer builds a Wall. K-01 Serf collects debris. U-05 Engineer builds a Wall. G-34 Mercenary destroyed. Missile Launcher destroyed. Destroyed Missile Launcher. Pulse Rifle severed. U-05 Engineer builds a Wall. K-01 Serf collects debris. U-05 Engineer lays Concrete. K-01 Serf collects debris. EXIT=FOUND K-01 Serf collects debris. Titanium Leg destroyed. Aluminum Leg destroyed. Map ----- +----------------------------------------------------+ | ?????# #?????????# #?????????????????? | | ?????# #?????????# #?????????????????? | | ?????# # ##?????????# #?????????????????? | | ?????# ###??????????# #?????????????????? | | ?????# ##?????????#### #?????????????????? | | ?????# ############# ## #?????????????????? | | ?????## ### ##????????????????? | | ??????# ### ##???????????????? | | ??????# ## ########## #???????????????? | | ??????## ## #????????### #???????????????? | | ######## #??????????## #???????????????? | | ###########????# ##???????????????? | | ##?## ##??? #????????????????? | | ##### ### #### ????????????????? | | #### ???????????????? | | ### # ?? ??????????????? | | ### #??### #?????????????? | | #### #??????# ##?????????????? | | ######## ####### #???????? #??????????????? | | ???????# #??### #????????? #??????????????? | | ?####### #### #????????? #??????????????? | | ?# #####????? ??????????????? | | ?# ########## #????? ??????????????? | | ????????????## #??????##??????????????? | | ?????????????## # #??????????????????????? | | ??????????????##### ##l@#??????????????????????? | | ??????????????????# #### #??????????????????????? | | ??????????????????# #??# #??????????????????????? | | ??????????????????# #??# #??????????????????????? | | ?????????????????? #??# #??????????????????????? | | ?????????????????? ??# #??????????????????????? | | ?????????????????? ??# #??????????????????????? | | ?????????????????? ??# ??????????????????????? | | ????????????????? < ??# ??????????????????????? | | ?????????????????## ??#####?????????????????????? | | ??????????????????? ????????????????????????????? | | ??????????????????? ????????????????????????????? | | ?????????????????????????????????????????????????? | | ?????????????????????????????????????????????????? | | ?????????????????????????????????????????????????? | | ?????????????????????????????????????????????????? | | ?????????????????????????????????????????????????? | | ?????????????????????????????????????????????????? | | ?????????????????????????????????????????????????? | | ?????????????????????????????????????????????????? | | ?????????????????????????????????????????????????? | | ?????????????????????????????????????????????????? | | ?????????????????????????????????????????????????? | | | | | +----------------------------------------------------+ Best States ------------- Heat Dissipation 25 Energy Generation 14 Energy Capacity 275 Matter Stores 300 Matter Capacity 300 Sight Range 16 Terrain Scan Density 10 Power Shielding 33 Evasion (%) 55 Item Schematics ----------------- None Robot Schematics ------------------ None Fabricated ------------ Nothing Repaired ---------- Nothing Alien Tech Used ----------------- None Achievements -------------- None Challenges ------------ None Game ------ Seed MetaPhysicsBasin Manual? 0 Play Time 00:13:28 Cumulative 2.5 hours Start 2025.07.01 @ 20:26:28 End 2025.07.01 @ 20:39:23 Sessions 4 Manual Loads 0 Difficulty Rogue Special Mode None Game No. 6 Rogue 6 Adventurer 0 Explorer 0 Win Type - Total 0 Types 0/0/0/0/0/0/0/0/0/0 Lore% 5 Gallery% 8 Achievement% 10 Wizard Run 0 Options --------- Layout 1 ASCII 0 Keyboard 0 Movement Mouse Keybinds 0 Fullscreen 1 Font 24/Smallcaps Map View 50x35 Zoom Use 0% Tactical HUD 0 Map Filters NONE Filters NONE Steam 1 RUN: 98df335f-89cf-42dd-b000-3cceaa4ab0e5